Workbook

Sheet Messwerte
A2: Spalte1 | B2: Lat Werte | C2: Lon Werte | D2: Höhe | E2: Höhenänderung ∆h in m | F2: gesamtHöhe in m | G2: Strecke in km | H2: Strecke in m | I2: Streckenänderung ∆s in m | J2: gesamtStrecke in m | K2: Datum/Zeit | L2: Stunde | M2: Minute | N2: Sekunde | O2: Zeitänderung ∆t in s | P2: gesamtZeit in s | Q2: Tempo in m/s | R2: Beschleunigung in m/s² | S2: Ortsänderung ∆x in m | T2: Ortsänderung ∆y in m2 | U2: x in m | V2: y in m
A3: 1 | B3: 50.2525243 | C3: 9.29039155 | D3: 201.32 | K3: 2023-04-10T08:25:46 | L3: =IF(ISBLANK($K3),"",HOUR($K3)) -> 8 | M3: =IF(ISBLANK($K3),"",MINUTE($K3)) -> 25 | N3: =IF(ISBLANK($K3),"",SECOND($K3)) -> 46 | U3: =71500*(C3-C$3) -> 0 | V3: =111300*(B3-B$3) -> 0
A4: 2 | B4: 50.25252408 | C4: 9.29039235 | D4: 201.27 | E4: =IF(ISBLANK($D4),"",$D4-$D3) -> -0.05 | F4: =IF(ISBLANK($D4),"",$D4-$D$3) -> -0.05 | G4: =IF(ISBLANK($B4),"",6371*ACOS(SIN(RADIANS($B3))*SIN(RADIANS($B4))+COS(RADIANS($B3))*COS(RADIANS($B4))*COS(RADIANS($C4-$C3)))) -> 0 | H4: =IF(ISBLANK($G4),"",$G4*1000) -> 0 | I4: =IF(ISBLANK($H4),"",$H4-$H3) -> 0 | J4: =SUM($H$3:$H4) -> 0 | K4: 2023-04-10T08:25:47 | L4: =IF(ISBLANK($K4),"",HOUR($K4)) -> 8 | M4: =IF(ISBLANK($K4),"",MINUTE($K4)) -> 25 | N4: =IF(ISBLANK($K4),"",SECOND($K4)) -> 47 | O4: =($L4*3600+$M4*60+$N4)-($L3*3600+$M3*60+$N3) -> 1 | P4: =IF(ISBLANK($O4),"",SUM($O$3:$O4)) -> 1 | Q4: =$H4/$O4 -> 0 | S4: =ROUND(IF(ISBLANK($B4),"",(71.5*($C4-$C3))*1000),2) -> 0.06 | T4: =ROUND(IF(ISBLANK($C4),"",(111.3*($B4-$B3))*1000),2) -> -0.02 | U4: =71500*(C4-C$3) -> 0.05719999991 | V4: =111300*(B4-B$3) -> -0.02448599965
A5: 3 | B5: 50.252529 | C5: 9.29038679 | D5: 201.27 | E5: =IF(ISBLANK($D5),"",$D5-$D4) -> 0 | F5: =IF(ISBLANK($D5),"",$D5-$D$3) -> -0.05 | G5: =IF(ISBLANK($B5),"",6371*ACOS(SIN(RADIANS($B4))*SIN(RADIANS($B5))+COS(RADIANS($B4))*COS(RADIANS($B5))*COS(RADIANS($C5-$C4)))) -> 0.0006712939295 | H5: =IF(ISBLANK($G5),"",$G5*1000) -> 0.6712939295 | I5: =IF(ISBLANK($H5),"",$H5-$H4) -> 0.6712939295 | J5: =SUM($H$3:$H5) -> 0.6712939295 | K5: 2023-04-10T08:25:48 | L5: 8 | M5: 25 | N5: 48 | O5: =($L5*3600+$M5*60+$N5)-($L4*3600+$M4*60+$N4) -> 1 | P5: =IF(ISBLANK($O5),"",SUM($O$3:$O5)) -> 2 | Q5: =$H5/$O5 -> 0.6712939295 | R5: =($Q5-$Q4)/$O5 -> 0.6712939295 | S5: =ROUND(IF(ISBLANK($B5),"",(71.5*($C5-$C4))*1000),2) -> -0.4 | T5: =ROUND(IF(ISBLANK($C5),"",(111.3*($B5-$B4))*1000),2) -> 0.55 | U5: -0.3403400001 | V5: 0.5231100006
A6: 4 | B6: 50.25253586 | C6: 9.2903723 | D6: 201.25 | E6: -0.02 | F6: -0.07 | G6: 0.00128074719 | H6: 1.28074719 | I6: =IF(ISBLANK($H6),"",$H6-$H5) -> 0.6094532603 | J6: =SUM($H$3:$H6) -> 1.952041119 | K6: 2023-04-10T08:25:49 | L6: 8 | M6: 25 | N6: 49 | O6: 1 | P6: =IF(ISBLANK($O6),"",SUM($O$3:$O6)) -> 3 | Q6: =$H6/$O6 -> 1.28074719 | R6: =($Q6-$Q5)/$O6 -> 0.6094532603 | S6: -1.04 | T6: 0.76 | U6: -1.376375 | V6: 1.286628
A7: 5 | B7: 50.25254223 | C7: 9.29034704 | D7: 201.46 | E7: 0.21 | F7: 0.14 | G7: 0.001926976089 | H7: 1.926976089 | I7: 0.6462288989 | J7: =SUM($H$3:$H7) -> 3.879017208 | K7: 2023-04-10T08:25:50 | L7: 8 | M7: 25 | N7: 50 | O7: 1 | P7: =IF(ISBLANK($O7),"",SUM($O$3:$O7)) -> 4 | Q7: 1.926976089 | R7: 0.6462288989 | S7: -1.81 | T7: 0.71 | U7: -3.182465 | V7: 1.995609001
A8: 6 | B8: 50.25254873 | C8: 9.2903202 | D8: 201.68 | E8: 0.22 | F8: 0.36 | G8: 0.002040556882 | H8: 2.040556882 | I8: 0.1135807929 | J8: =SUM($H$3:$H8) -> 5.91957409 | K8: 2023-04-10T08:25:51 | L8: 8 | M8: 25 | N8: 51 | O8: 1 | P8: =IF(ISBLANK($O8),"",SUM($O$3:$O8)) -> 5 | Q8: 2.040556882 | R8: 0.1135807929 | S8: -1.92 | T8: 0.72 | U8: -5.101525 | V8: 2.719059
A9: 7 | B9: 50.25254867 | C9: 9.29029317 | D9: 201.36 | E9: -0.32 | F9: 0.04 | G9: 0.001922293273 | H9: 1.922293273 | I9: -0.1182636085 | J9: =SUM($H$3:$H9) -> 7.841867363 | K9: 2023-04-10T08:25:52 | L9: 8 | M9: 25 | N9: 52 | O9: 1 | P9: =IF(ISBLANK($O9),"",SUM($O$3:$O9)) -> 6 | Q9: 1.922293273 | R9: -0.1182636085 | S9: -1.93 | T9: -0.01 | U9: -7.03417 | V9: 2.712381001
A10: 8 | B10: 50.25254637 | C10: 9.290273 | D10: 201.24 | E10: -0.12 | F10: -0.08 | G10: 0.001455330559 | H10: 1.455330559 | I10: -0.4669627142 | J10: =SUM($H$3:$H10) -> 9.297197922 | K10: 2023-04-10T08:25:53 | L10: 8 | M10: 25 | N10: 53 | O10: 1 | P10: =IF(ISBLANK($O10),"",SUM($O$3:$O10)) -> 7 | Q10: 1.455330559 | R10: -0.4669627142 | S10: -1.44 | T10: -0.26 | U10: -8.476325 | V10: 2.456391
A11: 9 | B11: 50.25254338 | C11: 9.29024754 | D11: 201.27 | E11: 0.03 | F11: -0.05 | G11: 0.001840863727 | H11: 1.840863727 | I11: 0.3855331678 | J11: =SUM($H$3:$H11) -> 11.13806165 | K11: 2023-04-10T08:25:54 | L11: 8 | M11: 25 | N11: 54 | O11: 1 | P11: =IF(ISBLANK($O11),"",SUM($O$3:$O11)) -> 8 | Q11: 1.840863727 | R11: 0.3855331678 | S11: -1.82 | T11: -0.33 | U11: -10.296715 | V11: 2.123604
A12: 10 | B12: 50.25253598 | C12: 9.29022431 | D12: 201.21 | E12: -0.06 | F12: -0.11 | G12: 0.001845753147 | H12: 1.845753147 | I12: 0.004889420365 | J12: =SUM($H$3:$H12) -> 12.9838148 | K12: 2023-04-10T08:25:55 | L12: 8 | M12: 25 | N12: 55 | O12: 1 | P12: =IF(ISBLANK($O12),"",SUM($O$3:$O12)) -> 9 | Q12: 1.845753147 | R12: 0.004889420365 | S12: -1.66 | T12: -0.82 | U12: -11.95766 | V12: 1.299984
A13: 11 | B13: 50.25253198 | C13: 9.29020661 | D13: 201.15 | E13: -0.06 | F13: -0.17 | G13: 0.001335858053 | H13: 1.335858053 | I13: -0.5098950939 | J13: =SUM($H$3:$H13) -> 14.31967285 | K13: 2023-04-10T08:25:56 | L13: 8 | M13: 25 | N13: 56 | O13: 1 | P13: =IF(ISBLANK($O13),"",SUM($O$3:$O13)) -> 10 | Q13: 1.335858053 | R13: -0.5098950939 | S13: -1.27 | T13: -0.45 | U13: -13.22321 | V13: 0.8547840003
A14: 12 | B14: 50.25252731 | C14: 9.29018845 | D14: 201.11 | E14: -0.04 | F14: -0.21 | G14: 0.001395258231 | H14: 1.395258231 | I14: 0.05940017818 | J14: =SUM($H$3:$H14) -> 15.71493108 | K14: 2023-04-10T08:25:57 | L14: 8 | M14: 25 | N14: 57 | O14: 1 | P14: =IF(ISBLANK($O14),"",SUM($O$3:$O14)) -> 11 | Q14: 1.395258231 | R14: 0.05940017818 | S14: -1.3 | T14: -0.52 | U14: -14.52165 | V14: 0.335013
A15: 13 | B15: 50.25251678 | C15: 9.29017033 | D15: 201.13 | E15: 0.02 | F15: -0.19 | G15: 0.001740192756 | H15: 1.740192756 | I15: 0.3449345243 | J15: =SUM($H$3:$H15) -> 17.45512384 | K15: 2023-04-10T08:25:58 | L15: 8 | M15: 25 | N15: 58 | O15: 1 | P15: =IF(ISBLANK($O15),"",SUM($O$3:$O15)) -> 12 | Q15: 1.740192756 | R15: 0.3449345243 | S15: -1.3 | T15: -1.17 | U15: -15.81723 | V15: -0.8369759997
A16: 14 | B16: 50.25250794 | C16: 9.29015216 | D16: 201.13 | E16: 0 | F16: -0.19 | G16: 0.001622255082 | H16: 1.622255082 | I16: -0.117937674 | J16: =SUM($H$3:$H16) -> 19.07737892 | K16: 2023-04-10T08:25:59 | L16: 8 | M16: 25 | N16: 59 | O16: 1 | P16: =IF(ISBLANK($O16),"",SUM($O$3:$O16)) -> 13 | Q16: 1.622255082 | R16: -0.117937674 | S16: -1.3 | T16: -0.98 | U16: -17.116385 | V16: -1.820868
A17: 15 | B17: 50.25249815 | C17: 9.29013917 | D17: 201.09 | E17: -0.04 | F17: -0.23 | G17: 0.001427190471 | H17: 1.427190471 | I17: -0.1950646108 | J17: =SUM($H$3:$H17) -> 20.50456939 | K17: 2023-04-10T08:26:00 | L17: 8 | M17: 26 | N17: 0 | O17: 1 | P17: =IF(ISBLANK($O17),"",SUM($O$3:$O17)) -> 14 | Q17: 1.427190471 | R17: -0.1950646108 | S17: -0.93 | T17: -1.09 | U17: -18.04517 | V17: -2.910495
A18: 16 | B18: 50.25248842 | C18: 9.29012488 | D18: 201.04 | E18: -0.05 | F18: -0.28 | G18: 0.001485972457 | H18: 1.485972457 | I18: 0.05878198629 | J18: =SUM($H$3:$H18) -> 21.99054185 | K18: 2023-04-10T08:26:01 | L18: 8 | M18: 26 | N18: 1 | O18: 1 | P18: =IF(ISBLANK($O18),"",SUM($O$3:$O18)) -> 15 | Q18: 1.485972457 | R18: 0.05878198629 | S18: -1.02 | T18: -1.08 | U18: -19.066905 | V18: -3.993444
A19: 17 | B19: 50.25247772 | C19: 9.29011195 | D19: 201 | E19: -0.04 | F19: -0.32 | G19: 0.001501058859 | H19: 1.501058859 | I19: 0.01508640221 | J19: =SUM($H$3:$H19) -> 23.49160071 | K19: 2023-04-10T08:26:02 | L19: 8 | M19: 26 | N19: 2 | O19: 1 | P19: =IF(ISBLANK($O19),"",SUM($O$3:$O19)) -> 16 | Q19: 1.501058859 | R19: 0.01508640221 | S19: -0.92 | T19: -1.19 | U19: -19.9914 | V19: -5.184354
A20: 18 | B20: 50.25246723 | C20: 9.29010339 | D20: 200.93 | E20: -0.07 | F20: -0.39 | G20: 0.001318883309 | H20: 1.318883309 | I20: -0.1821755502 | J20: =SUM($H$3:$H20) -> 24.81048401 | K20: 2023-04-10T08:26:03 | L20: 8 | M20: 26 | N20: 3 | O20: 1 | P20: =IF(ISBLANK($O20),"",SUM($O$3:$O20)) -> 17 | Q20: 1.318883309 | R20: -0.1821755502 | S20: -0.61 | T20: -1.17 | U20: -20.60344 | V20: -6.351891
A21: 19 | B21: 50.25245224 | C21: 9.29009409 | D21: 200.94 | E21: 0.01 | F21: -0.38 | G21: 0.001791235619 | H21: 1.791235619 | I21: 0.4723523096 | J21: =SUM($H$3:$H21) -> 26.60171963 | K21: 2023-04-10T08:26:04 | L21: 8 | M21: 26 | N21: 4 | O21: 1 | P21: =IF(ISBLANK($O21),"",SUM($O$3:$O21)) -> 18 | Q21: 1.791235619 | R21: 0.4723523096 | S21: -0.66 | T21: -1.67 | U21: -21.26839 | V21: -8.020278
A22: 20 | B22: 50.25243902 | C22: 9.29008851 | D22: 200.9 | E22: -0.04 | F22: -0.42 | G22: 0.001518964767 | H22: 1.518964767 | I22: -0.2722708513 | J22: =SUM($H$3:$H22) -> 28.1206844 | K22: 2023-04-10T08:26:05 | L22: 8 | M22: 26 | N22: 5 | O22: 1 | P22: =IF(ISBLANK($O22),"",SUM($O$3:$O22)) -> 19 | Q22: 1.518964767 | R22: -0.2722708513 | S22: -0.4 | T22: -1.47 | U22: -21.66736 | V22: -9.491664
A23: 21 | B23: 50.25242618 | C23: 9.29008131 | D23: 200.9 | E23: 0 | F23: -0.42 | G23: 0.001513019677 | H23: 1.513019677 | I23: -0.005945090173 | J23: =SUM($H$3:$H23) -> 29.63370408 | K23: 2023-04-10T08:26:06 | L23: 8 | M23: 26 | N23: 6 | O23: 1 | P23: =IF(ISBLANK($O23),"",SUM($O$3:$O23)) -> 20 | Q23: 1.513019677 | R23: -0.005945090173 | S23: -0.51 | T23: -1.43 | U23: -22.18216 | V23: -10.920756
A24: 22 | B24: 50.25241238 | C24: 9.29007812 | D24: 200.9 | E24: 0 | F24: -0.42 | G24: 0.001548347853 | H24: 1.548347853 | I24: 0.03532817544 | J24: =SUM($H$3:$H24) -> 31.18205193 | K24: 2023-04-10T08:26:07 | L24: 8 | M24: 26 | N24: 7 | O24: 1 | P24: =IF(ISBLANK($O24),"",SUM($O$3:$O24)) -> 21 | Q24: 1.548347853 | R24: 0.03532817544 | S24: -0.23 | T24: -1.54 | U24: -22.410245 | V24: -12.456696
A25: 23 | B25: 50.25239858 | C25: 9.29007676 | D25: 200.86 | E25: -0.04 | F25: -0.46 | G25: 0.001536662041 | H25: 1.536662041 | I25: -0.01168581207 | J25: =SUM($H$3:$H25) -> 32.71871397 | K25: 2023-04-10T08:26:08 | L25: 8 | M25: 26 | N25: 8 | O25: 1 | P25: =IF(ISBLANK($O25),"",SUM($O$3:$O25)) -> 22 | Q25: 1.536662041 | R25: -0.01168581207 | S25: -0.1 | T25: -1.54 | U25: -22.507485 | V25: -13.992636
A26: 24 | B26: 50.25238479 | C26: 9.29008517 | D26: 201.09 | E26: 0.23 | F26: -0.23 | G26: 0.001644327595 | H26: 1.644327595 | I26: 0.1076655546 | J26: =SUM($H$3:$H26) -> 34.36304157 | K26: 2023-04-10T08:26:09 | L26: 8 | M26: 26 | N26: 9 | O26: 1 | P26: =IF(ISBLANK($O26),"",SUM($O$3:$O26)) -> 23 | Q26: 1.644327595 | R26: 0.1076655546 | S26: 0.6 | T26: -1.53 | U26: -21.90617 | V26: -15.527463
A27: 25 | B27: 50.25236981 | C27: 9.29008996 | D27: 201.11 | E27: 0.02 | F27: -0.21 | G27: 0.001698254237 | H27: 1.698254237 | I27: 0.05392664192 | J27: =SUM($H$3:$H27) -> 36.0612958 | K27: 2023-04-10T08:26:10 | L27: 8 | M27: 26 | N27: 10 | O27: 1 | P27: =IF(ISBLANK($O27),"",SUM($O$3:$O27)) -> 24 | Q27: 1.698254237 | R27: 0.05392664192 | S27: 0.34 | T27: -1.67 | U27: -21.563685 | V27: -17.194737
A28: 26 | B28: 50.25235648 | C28: 9.29009669 | D28: 201.18 | E28: 0.07 | F28: -0.14 | G28: 0.001559946125 | H28: 1.559946125 | I28: -0.1383081121 | J28: =SUM($H$3:$H28) -> 37.62124193 | K28: 2023-04-10T08:26:11 | L28: 8 | M28: 26 | N28: 11 | O28: 1 | P28: =IF(ISBLANK($O28),"",SUM($O$3:$O28)) -> 25 | Q28: 1.559946125 | R28: -0.1383081121 | S28: 0.48 | T28: -1.48 | U28: -21.08249 | V28: -18.678366
A29: 27 | B29: 50.25234494 | C29: 9.29010642 | D29: 201.2 | E29: 0.02 | F29: -0.12 | G29: 0.00145842372 | H29: 1.45842372 | I29: -0.1015224055 | J29: =SUM($H$3:$H29) -> 39.07966565 | K29: 2023-04-10T08:26:12 | L29: 8 | M29: 26 | N29: 12 | O29: 1 | P29: =IF(ISBLANK($O29),"",SUM($O$3:$O29)) -> 26 | Q29: 1.45842372 | R29: -0.1015224055 | S29: 0.7 | T29: -1.28 | U29: -20.386795 | V29: -19.962768
A30: 28 | B30: 50.25233194 | C30: 9.29011599 | D30: 201.19 | E30: -0.01 | F30: -0.13 | G30: 0.001599878078 | H30: 1.599878078 | I30: 0.1414543588 | J30: =SUM($H$3:$H30) -> 40.67954373 | K30: 2023-04-10T08:26:13 | L30: 8 | M30: 26 | N30: 13 | O30: 1 | P30: =IF(ISBLANK($O30),"",SUM($O$3:$O30)) -> 27 | Q30: 1.599878078 | R30: 0.1414543588 | S30: 0.68 | T30: -1.45 | U30: -19.70254 | V30: -21.409668
A31: 29 | B31: 50.25232051 | C31: 9.29012924 | D31: 201.17 | E31: -0.02 | F31: -0.15 | G31: 0.001582887741 | H31: 1.582887741 | I31: -0.01699033772 | J31: =SUM($H$3:$H31) -> 42.26243147 | K31: 2023-04-10T08:26:14 | L31: 8 | M31: 26 | N31: 14 | O31: 1 | P31: =IF(ISBLANK($O31),"",SUM($O$3:$O31)) -> 28 | Q31: 1.582887741 | R31: -0.01699033772 | S31: 0.95 | T31: -1.27 | U31: -18.755165 | V31: -22.681827
A32: 30 | B32: 50.25230886 | C32: 9.29014438 | D32: 201.3 | E32: 0.13 | F32: -0.02 | G32: 0.00168493439 | H32: 1.68493439 | I32: 0.1020466493 | J32: =SUM($H$3:$H32) -> 43.94736586 | K32: 2023-04-10T08:26:15 | L32: 8 | M32: 26 | N32: 15 | O32: 1 | P32: =IF(ISBLANK($O32),"",SUM($O$3:$O32)) -> 29 | Q32: 1.68493439 | R32: 0.1020466493 | S32: 1.08 | T32: -1.3 | U32: -17.672655 | V32: -23.978472
A33: 31 | B33: 50.25229713 | C33: 9.290161 | D33: 201.23 | E33: -0.07 | F33: -0.09 | G33: 0.00176078747 | H33: 1.76078747 | I33: 0.0758530805 | J33: =SUM($H$3:$H33) -> 45.70815333 | K33: 2023-04-10T08:26:16 | L33: 8 | M33: 26 | N33: 16 | O33: 1 | P33: =IF(ISBLANK($O33),"",SUM($O$3:$O33)) -> 30 | Q33: 1.76078747 | R33: 0.0758530805 | S33: 1.19 | T33: -1.31 | U33: -16.484325 | V33: -25.284021
A34: 32 | B34: 50.25228768 | C34: 9.29017929 | D34: 201.24 | E34: 0.01 | F34: -0.08 | G34: 0.001671508405 | H34: 1.671508405 | I34: -0.08927906581 | J34: =SUM($H$3:$H34) -> 47.37966173 | K34: 2023-04-10T08:26:17 | L34: 8 | M34: 26 | N34: 17 | O34: 1 | P34: =IF(ISBLANK($O34),"",SUM($O$3:$O34)) -> 31 | Q34: 1.671508405 | R34: -0.08927906581 | S34: 1.31 | T34: -1.05 | U34: -15.17659 | V34: -26.335806
A35: 33 | B35: 50.25228167 | C35: 9.29019804 | D35: 201.32 | E35: 0.08 | F35: 0 | G35: 0.001489001966 | H35: 1.489001966 | I35: -0.1825064388 | J35: =SUM($H$3:$H35) -> 48.8686637 | K35: 2023-04-10T08:26:18 | L35: 8 | M35: 26 | N35: 18 | O35: 1 | P35: =IF(ISBLANK($O35),"",SUM($O$3:$O35)) -> 32 | Q35: 1.489001966 | R35: -0.1825064388 | S35: 1.34 | T35: -0.67 | U35: =71500*(C35-C$3) -> -13.835965 | V35: =111300*(B35-B$3) -> -27.004719
A36: 34 | B36: 50.25227538 | C36: 9.29021732 | D36: 201.51 | E36: 0.19 | F36: 0.19 | G36: 0.00153959181 | H36: 1.53959181 | I36: 0.05058984383 | J36: =SUM($H$3:$H36) -> 50.40825551 | K36: 2023-04-10T08:26:19 | L36: 8 | M36: 26 | N36: 19 | O36: 1 | P36: =IF(ISBLANK($O36),"",SUM($O$3:$O36)) -> 33 | Q36: 1.53959181 | R36: 0.05058984383 | S36: 1.38 | T36: -0.7 | U36: -12.457445 | V36: -27.704796
A37: 35 | B37: 50.25226788 | C37: 9.29023535 | D37: 201.48 | E37: -0.03 | F37: 0.16 | G37: 0.001530785682 | H37: 1.530785682 | I37: -0.008806127189 | J37: =SUM($H$3:$H37) -> 51.93904119 | K37: 2023-04-10T08:26:20 | L37: 8 | M37: 26 | N37: 20 | O37: 1 | P37: =IF(ISBLANK($O37),"",SUM($O$3:$O37)) -> 34 | Q37: 1.530785682 | R37: -0.008806127189 | S37: 1.29 | T37: -0.83 | U37: -11.1683 | V37: -28.539546
A38: 36 | B38: 50.25226384 | C38: 9.29025524 | D38: 201.45 | E38: =IF(ISBLANK($D38),"",$D38-$D37) -> -0.03 | F38: 0.13 | G38: =IF(ISBLANK($B38),"",6371*ACOS(SIN(RADIANS($B37))*SIN(RADIANS($B38))+COS(RADIANS($B37))*COS(RADIANS($B38))*COS(RADIANS($C38-$C37)))) -> 0.001482936759 | H38: 1.482936759 | I38: =IF(ISBLANK($H38),"",$H38-$H37) -> -0.04784892301 | J38: =SUM($H$3:$H38) -> 53.42197795 | K38: 2023-04-10T08:26:21 | L38: 8 | M38: 26 | N38: 21 | O38: =($L38*3600+$M38*60+$N38)-($L37*3600+$M37*60+$N37) -> 1 | P38: =IF(ISBLANK($O38),"",SUM($O$3:$O38)) -> 35 | Q38: 1.482936759 | R38: =($Q38-$Q37)/$O38 -> -0.04784892301 | S38: 1.42 | T38: -0.45 | U38: -9.746165 | V38: -28.989198
A39: 37 | B39: 50.25226214 | C39: 9.29027743 | D39: 201.43 | E39: -0.02 | F39: 0.11 | G39: 0.001591405584 | H39: 1.591405584 | I39: 0.1084688247 | J39: =SUM($H$3:$H39) -> 55.01338353 | K39: 2023-04-10T08:26:22 | L39: 8 | M39: 26 | N39: 22 | O39: 1 | P39: =IF(ISBLANK($O39),"",SUM($O$3:$O39)) -> 36 | Q39: 1.591405584 | R39: 0.1084688247 | S39: 1.59 | T39: -0.19 | U39: -8.15958 | V39: -29.178408
A40: 38 | B40: 50.25226089 | C40: 9.29029904 | D40: 201.37 | E40: -0.06 | F40: 0.05 | G40: 0.001542516013 | H40: 1.542516013 | I40: -0.04888957069 | J40: =SUM($H$3:$H40) -> 56.55589955 | K40: 2023-04-10T08:26:23 | L40: 8 | M40: 26 | N40: 23 | O40: 1 | P40: =IF(ISBLANK($O40),"",SUM($O$3:$O40)) -> 37 | Q40: 1.542516013 | R40: -0.04888957069 | S40: 1.55 | T40: -0.14 | U40: -6.614465 | V40: -29.317533
A41: 39 | B41: 50.25226049 | C41: 9.29032062 | D41: 201.31 | E41: -0.06 | F41: -0.01 | G41: 0.001536662041 | H41: 1.536662041 | I41: -0.005853972813 | J41: =SUM($H$3:$H41) -> 58.09256159 | K41: 2023-04-10T08:26:24 | L41: 8 | M41: 26 | N41: 24 | O41: 1 | P41: =IF(ISBLANK($O41),"",SUM($O$3:$O41)) -> 38 | Q41: 1.536662041 | R41: -0.005853972813 | S41: 1.54 | T41: -0.04 | U41: -5.071495 | V41: -29.362053
A42: 40 | B42: 50.25226171 | C42: 9.29034296 | D42: 201.33 | E42: 0.02 | F42: 0.01 | G42: 0.001594234752 | H42: 1.594234752 | I42: 0.05757271137 | J42: =SUM($H$3:$H42) -> 59.68679634 | K42: 2023-04-10T08:26:25 | L42: 8 | M42: 26 | N42: 25 | O42: 1 | P42: =IF(ISBLANK($O42),"",SUM($O$3:$O42)) -> 39 | Q42: 1.594234752 | R42: 0.05757271137 | S42: 1.6 | T42: 0.14 | U42: -3.474185 | V42: -29.226267
A43: 41 | B43: 50.25226547 | C43: 9.29036162 | D43: 201.24 | E43: -0.09 | F43: -0.08 | G43: 0.001392024719 | H43: 1.392024719 | I43: -0.2022100325 | J43: =SUM($H$3:$H43) -> 61.07882106 | K43: 2023-04-10T08:26:26 | L43: 8 | M43: 26 | N43: 26 | O43: 1 | P43: =IF(ISBLANK($O43),"",SUM($O$3:$O43)) -> 40 | Q43: 1.392024719 | R43: -0.2022100325 | S43: 1.33 | T43: 0.42 | U43: -2.139995 | V43: -28.807779
A44: 42 | B44: 50.25226948 | C44: 9.29038192 | D44: 201.21 | E44: -0.03 | F44: -0.11 | G44: 0.001513019677 | H44: 1.513019677 | I44: 0.1209949578 | J44: =SUM($H$3:$H44) -> 62.59184074 | K44: 2023-04-10T08:26:27 | L44: 8 | M44: 26 | N44: 27 | O44: 1 | P44: =IF(ISBLANK($O44),"",SUM($O$3:$O44)) -> 41 | Q44: 1.513019677 | R44: 0.1209949578 | S44: 1.45 | T44: 0.45 | U44: -0.6885450001 | V44: -28.361466
A45: 43 | B45: 50.25227545 | C45: 9.29040052 | D45: 201.2 | E45: -0.01 | F45: -0.12 | G45: 0.001476846645 | H45: 1.476846645 | I45: -0.03617303185 | J45: =SUM($H$3:$H45) -> 64.06868738 | K45: 2023-04-10T08:26:28 | L45: 8 | M45: 26 | N45: 28 | O45: 1 | P45: =IF(ISBLANK($O45),"",SUM($O$3:$O45)) -> 42 | Q45: 1.476846645 | R45: -0.03617303185 | S45: 1.33 | T45: 0.66 | U45: 0.641355 | V45: -27.697005
A46: 44 | B46: 50.25228356 | C46: 9.29041822 | D46: 201.32 | E46: 0.12 | F46: 0 | G46: 0.001548347853 | H46: 1.548347853 | I46: 0.07150120729 | J46: =SUM($H$3:$H46) -> 65.61703524 | K46: 2023-04-10T08:26:29 | L46: 8 | M46: 26 | N46: 29 | O46: 1 | P46: =IF(ISBLANK($O46),"",SUM($O$3:$O46)) -> 43 | Q46: 1.548347853 | R46: 0.07150120729 | S46: 1.27 | T46: 0.9 | U46: 1.906905 | V46: -26.794362
A47: 45 | B47: 50.25229196 | C47: 9.29043555 | D47: 201.32 | E47: 0 | F47: 0 | G47: 0.001545434683 | H47: 1.545434683 | I47: -0.002913169557 | J47: =SUM($H$3:$H47) -> 67.16246992 | K47: 2023-04-10T08:26:30 | L47: 8 | M47: 26 | N47: 30 | O47: 1 | P47: =IF(ISBLANK($O47),"",SUM($O$3:$O47)) -> 44 | Q47: 1.545434683 | R47: -0.002913169557 | S47: 1.24 | T47: 0.93 | U47: 3.146 | V47: -25.859442
A48: 46 | B48: 50.25230236 | C48: 9.29044993 | D48: 201.22 | E48: -0.1 | F48: -0.1 | G48: 0.001542516013 | H48: 1.542516013 | I48: -0.002918669701 | J48: =SUM($H$3:$H48) -> 68.70498593 | K48: 2023-04-10T08:26:31 | L48: 8 | M48: 26 | N48: 31 | O48: 1 | P48: =IF(ISBLANK($O48),"",SUM($O$3:$O48)) -> 45 | Q48: 1.542516013 | R48: -0.002918669701 | S48: 1.03 | T48: 1.16 | U48: 4.17417 | V48: -24.701922
A49: 47 | B49: 50.25231318 | C49: 9.29046597 | D49: 201.28 | E49: 0.06 | F49: -0.04 | G49: 0.001660689467 | H49: 1.660689467 | I49: 0.1181734531 | J49: =SUM($H$3:$H49) -> 70.3656754 | K49: 2023-04-10T08:26:32 | L49: 8 | M49: 26 | N49: 32 | O49: 1 | P49: =IF(ISBLANK($O49),"",SUM($O$3:$O49)) -> 46 | Q49: 1.660689467 | R49: 0.1181734531 | S49: 1.15 | T49: 1.2 | U49: 5.32103 | V49: -23.497656
A50: 48 | B50: 50.25232539 | C50: 9.29047768 | D50: 201.15 | E50: -0.13 | F50: -0.17 | G50: 0.001594234752 | H50: 1.594234752 | I50: -0.06645471452 | J50: =SUM($H$3:$H50) -> 71.95991015 | K50: 2023-04-10T08:26:33 | L50: 8 | M50: 26 | N50: 33 | O50: 1 | P50: =IF(ISBLANK($O50),"",SUM($O$3:$O50)) -> 47 | Q50: 1.594234752 | R50: -0.06645471452 | S50: 0.84 | T50: 1.36 | U50: 6.158295 | V50: -22.138683
A51: 49 | B51: 50.25233805 | C51: 9.29048913 | D51: 201.12 | E51: -0.03 | F51: -0.2 | G51: 0.00162780127 | H51: 1.62780127 | I51: 0.03356651797 | J51: =SUM($H$3:$H51) -> 73.58771142 | K51: 2023-04-10T08:26:34 | L51: 8 | M51: 26 | N51: 34 | O51: 1 | P51: =IF(ISBLANK($O51),"",SUM($O$3:$O51)) -> 48 | Q51: 1.62780127 | R51: 0.03356651797 | S51: 0.82 | T51: 1.41 | U51: 6.97697 | V51: -20.729625
A52: 50 | B52: 50.25235122 | C52: 9.29049897 | D52: 201.19 | E52: 0.07 | F52: -0.13 | G52: 0.001622255082 | H52: 1.622255082 | I52: -0.005546188244 | J52: =SUM($H$3:$H52) -> 75.2099665 | K52: 2023-04-10T08:26:35 | L52: 8 | M52: 26 | N52: 35 | O52: 1 | P52: =IF(ISBLANK($O52),"",SUM($O$3:$O52)) -> 49 | Q52: 1.622255082 | R52: -0.005546188244 | S52: 0.7 | T52: 1.47 | U52: 7.68053 | V52: -19.263804
A53: 51 | B53: 50.25236449 | C53: 9.29050459 | D53: 201.21 | E53: 0.02 | F53: -0.11 | G53: 0.001527839028 | H53: 1.527839028 | I53: -0.0944160535 | J53: =SUM($H$3:$H53) -> 76.73780553 | K53: 2023-04-10T08:26:36 | L53: 8 | M53: 26 | N53: 36 | O53: 1 | P53: =IF(ISBLANK($O53),"",SUM($O$3:$O53)) -> 50 | Q53: 1.527839028 | R53: -0.0944160535 | S53: 0.4 | T53: 1.48 | U53: 8.08236 | V53: -17.786853
A54: 52 | B54: 50.25237797 | C54: 9.29050954 | D54: 201.19 | E54: -0.02 | F54: -0.13 | G54: 0.00153959181 | H54: 1.53959181 | I54: 0.01175278142 | J54: =SUM($H$3:$H54) -> 78.27739734 | K54: 2023-04-10T08:26:37 | L54: 8 | M54: 26 | N54: 37 | O54: 1 | P54: =IF(ISBLANK($O54),"",SUM($O$3:$O54)) -> 51 | Q54: 1.53959181 | R54: 0.01175278142 | S54: 0.35 | T54: 1.5 | U54: 8.436285 | V54: -16.286529
A55: 53 | B55: 50.25239075 | C55: 9.29051301 | D55: 201.39 | E55: 0.2 | F55: 0.07 | G55: 0.001442891609 | H55: 1.442891609 | I55: -0.09670020064 | J55: =SUM($H$3:$H55) -> 79.72028895 | K55: 2023-04-10T08:26:38 | L55: 8 | M55: 26 | N55: 38 | O55: 1 | P55: =IF(ISBLANK($O55),"",SUM($O$3:$O55)) -> 52 | Q55: 1.442891609 | R55: -0.09670020064 | S55: 0.25 | T55: 1.42 | U55: 8.68439 | V55: -14.864115
A56: 54 | B56: 50.25240476 | C56: 9.29051326 | D56: 201.3 | E56: -0.09 | F56: -0.02 | G56: 0.001557054656 | H56: 1.557054656 | I56: 0.1141630472 | J56: =SUM($H$3:$H56) -> 81.27734361 | K56: 2023-04-10T08:26:39 | L56: 8 | M56: 26 | N56: 39 | O56: 1 | P56: =IF(ISBLANK($O56),"",SUM($O$3:$O56)) -> 53 | Q56: 1.557054656 | R56: 0.1141630472 | S56: 0.02 | T56: 1.56 | U56: 8.702265 | V56: -13.304802
A57: 55 | B57: 50.25241881 | C57: 9.29051112 | D57: 201.29 | E57: -0.01 | F57: -0.03 | G57: 0.0015714588 | H57: 1.5714588 | I57: 0.01440414383 | J57: =SUM($H$3:$H57) -> 82.84880241 | K57: 2023-04-10T08:26:40 | L57: 8 | M57: 26 | N57: 40 | O57: 1 | P57: =IF(ISBLANK($O57),"",SUM($O$3:$O57)) -> 54 | Q57: 1.5714588 | R57: 0.01440414383 | S57: -0.15 | T57: 1.56 | U57: 8.549255 | V57: -11.741037
A58: 56 | B58: 50.25243232 | C58: 9.29050845 | D58: 201.37 | E58: 0.08 | F58: 0.05 | G58: 0.001513019677 | H58: 1.513019677 | I58: -0.05843912273 | J58: =SUM($H$3:$H58) -> 84.36182208 | K58: 2023-04-10T08:26:41 | L58: 8 | M58: 26 | N58: 41 | O58: 1 | P58: =IF(ISBLANK($O58),"",SUM($O$3:$O58)) -> 55 | Q58: 1.513019677 | R58: -0.05843912273 | S58: -0.19 | T58: 1.5 | U58: 8.35835 | V58: -10.237374
A59: 57 | B59: 50.25244557 | C59: 9.29050272 | D59: 201.28 | E59: -0.09 | F59: -0.04 | G59: 0.001527839028 | H59: 1.527839028 | I59: 0.01481935097 | J59: =SUM($H$3:$H59) -> 85.88966111 | K59: 2023-04-10T08:26:42 | L59: 8 | M59: 26 | N59: 42 | O59: 1 | P59: =IF(ISBLANK($O59),"",SUM($O$3:$O59)) -> 56 | Q59: 1.527839028 | R59: 0.01481935097 | S59: -0.41 | T59: 1.47 | U59: 7.948655 | V59: -8.762649
A60: 58 | B60: 50.25245835 | C60: 9.29049538 | D60: 201.22 | E60: -0.06 | F60: -0.1 | G60: 0.001513019677 | H60: 1.513019677 | I60: -0.01481935097 | J60: =SUM($H$3:$H60) -> 87.40268079 | K60: 2023-04-10T08:26:43 | L60: 8 | M60: 26 | N60: 43 | O60: 1 | P60: =IF(ISBLANK($O60),"",SUM($O$3:$O60)) -> 57 | Q60: 1.513019677 | R60: -0.01481935097 | S60: -0.52 | T60: 1.42 | U60: 7.423845 | V60: -7.340235
A61: 59 | B61: 50.25247188 | C61: 9.29048519 | D61: 201.16 | E61: -0.06 | F61: -0.16 | G61: 0.001671508405 | H61: 1.671508405 | I61: 0.1584887274 | J61: =SUM($H$3:$H61) -> 89.07418919 | K61: 2023-04-10T08:26:44 | L61: 8 | M61: 26 | N61: 44 | O61: 1 | P61: =IF(ISBLANK($O61),"",SUM($O$3:$O61)) -> 58 | Q61: 1.671508405 | R61: 0.1584887274 | S61: -0.73 | T61: 1.51 | U61: 6.69526 | V61: -5.834346
A62: 60 | B62: 50.25248491 | C62: 9.29047373 | D62: 201.24 | E62: 0.08 | F62: -0.08 | G62: 0.001663400797 | H62: 1.663400797 | I62: -0.008107607443 | J62: =SUM($H$3:$H62) -> 90.73758999 | K62: 2023-04-10T08:26:45 | L62: 8 | M62: 26 | N62: 45 | O62: 1 | P62: =IF(ISBLANK($O62),"",SUM($O$3:$O62)) -> 59 | Q62: 1.663400797 | R62: -0.008107607443 | S62: -0.82 | T62: 1.45 | U62: 5.87587 | V62: -4.384107
A63: 61 | B63: 50.25249604 | C63: 9.29045997 | D63: 201.19 | E63: -0.05 | F63: -0.13 | G63: 0.001577183623 | H63: 1.577183623 | I63: -0.0862171745 | J63: =SUM($H$3:$H63) -> 92.31477361 | K63: 2023-04-10T08:26:46 | L63: 8 | M63: 26 | N63: 46 | O63: 1 | P63: =IF(ISBLANK($O63),"",SUM($O$3:$O63)) -> 60 | Q63: 1.577183623 | R63: -0.0862171745 | S63: -0.98 | T63: 1.24 | U63: 4.89203 | V63: -3.145338
A64: 62 | B64: 50.25250641 | C64: 9.29044485 | D64: 201.13 | E64: -0.06 | F64: -0.19 | G64: 0.001577183623 | H64: 1.577183623 | I64: 0 | J64: =SUM($H$3:$H64) -> 93.89195724 | K64: 2023-04-10T08:26:47 | L64: 8 | M64: 26 | N64: 47 | O64: 1 | P64: =IF(ISBLANK($O64),"",SUM($O$3:$O64)) -> 61 | Q64: 1.577183623 | R64: 0 | S64: -1.08 | T64: 1.15 | U64: 3.81095 | V64: -1.991156999
A65: 63 | B65: 50.25251542 | C65: 9.29042827 | D65: 200.99 | E65: -0.14 | F65: -0.33 | G65: 0.001548347853 | H65: 1.548347853 | I65: -0.02883576998 | J65: =SUM($H$3:$H65) -> 95.44030509 | K65: 2023-04-10T08:26:48 | L65: 8 | M65: 26 | N65: 48 | O65: 1 | P65: =IF(ISBLANK($O65),"",SUM($O$3:$O65)) -> 62 | Q65: 1.548347853 | R65: -0.02883576998 | S65: -1.19 | T65: 1 | U65: 2.62548 | V65: -0.9883439995
A66: 64 | B66: 50.25252302 | C66: 9.29040976 | D66: 200.96 | E66: -0.03 | F66: -0.36 | G66: 0.001565713043 | H66: 1.565713043 | I66: 0.01736519067 | J66: =SUM($H$3:$H66) -> 97.00601813 | K66: 2023-04-10T08:26:49 | L66: 8 | M66: 26 | N66: 49 | O66: 1 | P66: =IF(ISBLANK($O66),"",SUM($O$3:$O66)) -> 63 | Q66: 1.565713043 | R66: 0.01736519067 | S66: -1.32 | T66: 0.85 | U66: 1.302015 | V66: -0.1424639999
A67: 65 | B67: 50.25252978 | C67: 9.29039111 | D67: 201.06 | E67: 0.1 | F67: -0.26 | G67: 0.00152488668 | H67: 1.52488668 | I67: -0.04082636333 | J67: =SUM($H$3:$H67) -> 98.53090481 | K67: 2023-04-10T08:26:50 | L67: 8 | M67: 26 | N67: 50 | O67: 1 | P67: =IF(ISBLANK($O67),"",SUM($O$3:$O67)) -> 64 | Q67: 1.52488668 | R67: -0.04082636333 | S67: -1.33 | T67: 0.75 | U67: -0.03146000006 | V67: 0.6099240006
A68: 66 | B68: 50.2525345 | C68: 9.29037269 | D68: 201.09 | E68: 0.03 | F68: -0.23 | G68: 0.001408118026 | H68: 1.408118026 | I68: -0.1167686542 | J68: =SUM($H$3:$H68) -> 99.93902284 | K68: 2023-04-10T08:26:51 | L68: =IF(ISBLANK($K68),"",HOUR($K68)) -> 8 | M68: =IF(ISBLANK($K68),"",MINUTE($K68)) -> 26 | N68: =IF(ISBLANK($K68),"",SECOND($K68)) -> 51 | O68: 1 | P68: =IF(ISBLANK($O68),"",SUM($O$3:$O68)) -> 65 | Q68: 1.408118026 | R68: -0.1167686542 | S68: -1.32 | T68: 0.53 | U68: -1.34849 | V68: 1.135260001
A69: 67 | B69: 50.2525397 | C69: 9.29035711 | D69: 201.09 | E69: =IF(ISBLANK($D69),"",$D69-$D68) -> 0 | F69: =IF(ISBLANK($D69),"",$D69-$D$3) -> -0.23 | G69: =IF(ISBLANK($B69),"",6371*ACOS(SIN(RADIANS($B68))*SIN(RADIANS($B69))+COS(RADIANS($B68))*COS(RADIANS($B69))*COS(RADIANS($C69-$C68)))) -> 0.00124506476 | H69: =IF(ISBLANK($G69),"",$G69*1000) -> 1.24506476 | I69: =IF(ISBLANK($H69),"",$H69-$H68) -> -0.1630532658 | J69: =SUM($H$3:$H69) -> 101.1840876 | K69: 2023-04-10T08:26:52 | L69: 8 | M69: 26 | N69: 52 | O69: =($L69*3600+$M69*60+$N69)-($L68*3600+$M68*60+$N68) -> 1 | P69: =IF(ISBLANK($O69),"",SUM($O$3:$O69)) -> 66 | Q69: =$H69/$O69 -> 1.24506476 | R69: -0.1630532658 | S69: =ROUND(IF(ISBLANK($B69),"",(71.5*($C69-$C68))*1000),2) -> -1.11 | T69: =ROUND(IF(ISBLANK($C69),"",(111.3*($B69-$B68))*1000),2) -> 0.58 | U69: -2.46246 | V69: 1.71402
A70: 68 | B70: 50.2525411 | C70: 9.29034268 | D70: 201.13 | E70: 0.04 | F70: -0.19 | G70: 0.001039964083 | H70: 1.039964083 | I70: -0.2051006767 | J70: =SUM($H$3:$H70) -> 102.2240517 | K70: 2023-04-10T08:26:53 | L70: 8 | M70: 26 | N70: 53 | O70: 1 | P70: =IF(ISBLANK($O70),"",SUM($O$3:$O70)) -> 67 | Q70: 1.039964083 | R70: =($Q70-$Q69)/$O70 -> -0.2051006767 | S70: -1.03 | T70: 0.16 | U70: -3.494205 | V70: 1.86984
A71: 69 | B71: 50.25254329 | C71: 9.29033562 | D71: 201.17 | E71: 0.04 | F71: -0.15 | G71: 0.0005696117878 | H71: 0.5696117878 | I71: -0.4703522956 | J71: =SUM($H$3:$H71) -> 102.7936635 | K71: 2023-04-10T08:26:54 | L71: 8 | M71: 26 | N71: 54 | O71: 1 | P71: =IF(ISBLANK($O71),"",SUM($O$3:$O71)) -> 68 | Q71: 0.5696117878 | R71: -0.4703522956 | S71: -0.5 | T71: 0.24 | U71: -3.998995 | V71: 2.113587

Sheet vVektor
A1: Bezeichnung | B1: xstart | C1: xend | D1: ystart | E1: yend
A2: V1 | B2: =Mittelwerte!E9 -> -0.4148787501 | C2: =Mittelwerte!E9+Mittelwerte!G9 -> -0.4148787501 | D2: =Mittelwerte!F9 -> 0.4463130004 | E2: =Mittelwerte!F9+Mittelwerte!H9 -> 0.4463130004
A3: V2 | B3: =Mittelwerte!E10 -> -5.94862125 | C3: =Mittelwerte!E10+Mittelwerte!G10 -> -11.99108625 | D3: =Mittelwerte!F10 -> 2.47086 | E3: =Mittelwerte!F10+Mittelwerte!H10 -> 2.824376625
A4: V3 | B4: =Mittelwerte!E11 -> -12.49980875 | C4: =Mittelwerte!E11+Mittelwerte!G11 -> -18.28120938 | D4: =Mittelwerte!F11 -> 1.15334625 | E4: =Mittelwerte!F11+Mittelwerte!H11 -> -1.277306625
A5: V4 | B5: =Mittelwerte!E12 -> -17.5114225 | C5: =Mittelwerte!E12+Mittelwerte!G12 -> -21.70284188 | D5: =Mittelwerte!F12 -> -2.39044575 | E5: =Mittelwerte!F12+Mittelwerte!H12 -> -6.59814225
A6: V5 | B6: =Mittelwerte!E13 -> -20.8826475 | C6: =Mittelwerte!E13+Mittelwerte!G13 -> -23.25269375 | D6: =Mittelwerte!F13 -> -7.26204675 | E6: =Mittelwerte!F13+Mittelwerte!H13 -> -12.67901775
A7: V6 | B7: =Mittelwerte!E14 -> -22.251515 | C7: =Mittelwerte!E14+Mittelwerte!G14 -> -22.15213 | D7: =Mittelwerte!F14 -> -13.22438775 | E7: =Mittelwerte!F14+Mittelwerte!H14 -> -19.24905675
A8: V7 | B8: =Mittelwerte!E15 -> -20.6838775 | C8: =Mittelwerte!E15+Mittelwerte!G15 -> -18.06921188 | D8: =Mittelwerte!F15 -> -19.31138475 | E8: =Mittelwerte!F15+Mittelwerte!H15 -> -24.98420662
A9: V8 | B9: =Mittelwerte!E16 -> -17.02218375 | C9: =Mittelwerte!E16+Mittelwerte!G16 -> -12.58122938 | D9: =Mittelwerte!F16 -> -24.5700315 | E9: =Mittelwerte!F16+Mittelwerte!H16 -> -28.9441215
A10: V9 | B10: =Mittelwerte!E17 -> -11.80196875 | C10: =Mittelwerte!E17+Mittelwerte!G17 -> -6.2058425 | D10: =Mittelwerte!F17 -> -28.05956475 | E10: =Mittelwerte!F17+Mittelwerte!H17 -> -30.41008162
A11: V10 | B11: =Mittelwerte!E18 -> -5.82993125 | C11: =Mittelwerte!E18+Mittelwerte!G18 -> 0.03601812495 | D11: =Mittelwerte!F18 -> -29.27106525 | E11: =Mittelwerte!F18+Mittelwerte!H18 -> -29.19885937
A12: V11 | B12: =Mittelwerte!E19 -> -0.07007000005 | C12: =Mittelwerte!E19+Mittelwerte!G19 -> 5.1948325 | D12: =Mittelwerte!F19 -> -27.915153 | E12: =Mittelwerte!F19+Mittelwerte!H19 -> -25.30433325
A13: V12 | B13: =Mittelwerte!E20 -> 4.69987375 | C13: =Mittelwerte!E20+Mittelwerte!G20 -> 8.631926875 | D13: =Mittelwerte!F20 -> -24.04942575 | E13: =Mittelwerte!F20+Mittelwerte!H20 -> -19.35020062
A14: V13 | B14: =Mittelwerte!E21 -> 7.79403625 | C14: =Mittelwerte!E21+Mittelwerte!G21 -> 9.730881875 | D14: =Mittelwerte!F21 -> -18.51670275 | E14: =Mittelwerte!F21+Mittelwerte!H21 -> -12.76040587
A15: V14 | B15: =Mittelwerte!E22 -> 8.573565 | C15: =Mittelwerte!E22+Mittelwerte!G22 -> 8.169500625 | D15: =Mittelwerte!F22 -> -12.536832 | E15: =Mittelwerte!F22+Mittelwerte!H22 -> -6.56864775
A16: V15 | B16: =Mittelwerte!E23 -> 6.9859075 | C16: =Mittelwerte!E23+Mittelwerte!G23 -> 4.277934375 | D16: =Mittelwerte!F23 -> -6.58033425 | E16: =Mittelwerte!F23+Mittelwerte!H23 -> -1.095331125
A17: V16 | B17: =Mittelwerte!E24 -> 3.15761875 | C17: =Mittelwerte!E24+Mittelwerte!G24 -> -1.252411875 | D17: =Mittelwerte!F24 -> -1.56682575 | E17: =Mittelwerte!F24+Mittelwerte!H24 -> 2.389471875
A18: V17 | B18: =Mittelwerte!E25 -> -1.83415375 | C18: =Mittelwerte!E25+Mittelwerte!G25 -> -4.412711875 | D18: =Mittelwerte!F25 -> 1.332261001 | E18: =Mittelwerte!F25+Mittelwerte!H25 -> 2.644070625
A19: V18
A20: V19
A21: V20
A22: V21
A23: V22
A24: V23
A25: V24
A26: V25
A27: V26

Sheet aVektor
A1: Bezeichnung | B1: xstart | C1: xend | D1: ystart | E1: yend
A2: A1 | B2: =Mittelwerte!E9 -> -0.4148787501 | C2: =Mittelwerte!E9+Mittelwerte!I9*2 -> -0.4148787501 | D2: =Mittelwerte!F9 -> 0.4463130004 | E2: =Mittelwerte!F9+Mittelwerte!J9*2 -> 0.4463130004
A3: A2 | B3: =Mittelwerte!E10 -> -5.94862125 | C3: =Mittelwerte!E10+Mittelwerte!I10*2 -> -5.94862125 | D3: =Mittelwerte!F10 -> 2.47086 | E3: =Mittelwerte!F10+Mittelwerte!J10*2 -> 2.47086
A4: A3 | B4: =Mittelwerte!E11 -> -12.49980875 | C4: =Mittelwerte!E11+Mittelwerte!I11*2 -> -10.64876313 | D4: =Mittelwerte!F11 -> 1.15334625 | E4: =Mittelwerte!F11+Mittelwerte!J11*2 -> -3.407866875
A5: A4 | B5: =Mittelwerte!E12 -> -17.5114225 | C5: =Mittelwerte!E12+Mittelwerte!I12*2 -> -14.10006813 | D5: =Mittelwerte!F12 -> -2.39044575 | E5: =Mittelwerte!F12+Mittelwerte!J12*2 -> -5.376763875
A6: A5 | B6: =Mittelwerte!E13 -> -20.8826475 | C6: =Mittelwerte!E13+Mittelwerte!I13*2 -> -16.59184313 | D6: =Mittelwerte!F13 -> -7.26204675 | E6: =Mittelwerte!F13+Mittelwerte!J13*2 -> -9.07901925
A7: A6 | B7: =Mittelwerte!E14 -> -22.251515 | C7: =Mittelwerte!E14+Mittelwerte!I14*2 -> -17.26680313 | D7: =Mittelwerte!F14 -> -13.22438775 | E7: =Mittelwerte!F14+Mittelwerte!J14*2 -> -13.48023862
A8: A7 | B8: =Mittelwerte!E15 -> -20.6838775 | C8: =Mittelwerte!E15+Mittelwerte!I15*2 -> -16.34230813 | D8: =Mittelwerte!F15 -> -19.31138475 | E8: =Mittelwerte!F15+Mittelwerte!J15*2 -> -17.66080575
A9: A8 | B9: =Mittelwerte!E16 -> -17.02218375 | C9: =Mittelwerte!E16+Mittelwerte!I16*2 -> -14.04072313 | D9: =Mittelwerte!F16 -> -24.5700315 | E9: =Mittelwerte!F16+Mittelwerte!J16*2 -> -21.2477265
A10: A9 | B10: =Mittelwerte!E17 -> -11.80196875 | C10: =Mittelwerte!E17+Mittelwerte!I17*2 -> -10.37697375 | D10: =Mittelwerte!F17 -> -28.05956475 | E10: =Mittelwerte!F17+Mittelwerte!J17*2 -> -23.61326887
A11: A10 | B11: =Mittelwerte!E18 -> -5.82993125 | C11: =Mittelwerte!E18+Mittelwerte!I18*2 -> -6.161155 | D11: =Mittelwerte!F18 -> -29.27106525 | E11: =Mittelwerte!F18+Mittelwerte!J18*2 -> -24.30972862
A12: A11 | B12: =Mittelwerte!E19 -> -0.07007000005 | C12: =Mittelwerte!E19+Mittelwerte!I19*2 -> -2.00396625 | D12: =Mittelwerte!F19 -> -27.915153 | E12: =Mittelwerte!F19+Mittelwerte!J19*2 -> -23.28813375
A13: A12 | B13: =Mittelwerte!E20 -> 4.69987375 | C13: =Mittelwerte!E20+Mittelwerte!I20*2 -> 1.371816875 | D13: =Mittelwerte!F20 -> -24.04942575 | E13: =Mittelwerte!F20+Mittelwerte!J20*2 -> -20.90394862
A14: A13 | B14: =Mittelwerte!E21 -> 7.79403625 | C14: =Mittelwerte!E21+Mittelwerte!I21*2 -> 3.45791875 | D14: =Mittelwerte!F21 -> -18.51670275 | E14: =Mittelwerte!F21+Mittelwerte!J21*2 -> -17.24774362
A15: A14 | B15: =Mittelwerte!E22 -> 8.573565 | C15: =Mittelwerte!E22+Mittelwerte!I22*2 -> 3.92874625 | D15: =Mittelwerte!F22 -> -12.536832 | E15: =Mittelwerte!F22+Mittelwerte!J22*2 -> -12.80812575
A16: A15 | B16: =Mittelwerte!E23 -> 6.9859075 | C16: =Mittelwerte!E23+Mittelwerte!I23*2 -> 2.97994125 | D16: =Mittelwerte!F23 -> -6.58033425 | E16: =Mittelwerte!F23+Mittelwerte!J23*2 -> -8.592220875
A17: A16 | B17: =Mittelwerte!E24 -> 3.15761875 | C17: =Mittelwerte!E24+Mittelwerte!I24*2 -> 3.28703375 | D17: =Mittelwerte!F24 -> -1.56682575 | E17: =Mittelwerte!F24+Mittelwerte!J24*2 -> -5.74001925
A18: A17 | B18: =Mittelwerte!E25 -> -1.83415375 | C18: =Mittelwerte!E25+Mittelwerte!I25*2 -> -1.83415375 | D18: =Mittelwerte!F25 -> 1.332261001 | E18: =Mittelwerte!F25+Mittelwerte!J25*2 -> 1.332261001
A19: A18
A20: A19
A21: A20
A22: A21
A23: A22
A24: A23
A25: A24
A26: A25
A27: A26
A28: A27
A29: A28
A30: A29
A31: A30
A32: A31
A33: A32
A34: A33
A35: A34
A36: A35

Sheet Mittelwerte
A1: Berechnung von Mittelwerten in Excel
A2: 1. Daten in die Tabelle einfügen (Werte Direkt unter der Überschrift (Bezeichung) einfügen)
A3: 2. Auswählen, über welche Anzahl der Mittelwert gebildet werden soll.
A4: 3. Bereich in der Fomel anpassen. Der einzutragene Bereich befindet sich über der Tabelle jeweils als Datenbereich 1 und Datenbereich 2.
B5: Datenbereich 1 | C5: Datenbereich 2
B6: ="$B$9:$B$"&9+$C$7-1 -> $B$9:$B$12 | C6: ="$C$9:$C$"&9+$C$7-1 -> $C$9:$C$12
B7: Mittelwert x und y über: | C7: 4
B8: Ort x in m | C8: Ort y in m | E8: Ort x in m | F8: Ort y in m | G8: vx in m/s | H8: vy in m/s | I8: ax in m/s² | J8: ay in m/s²
A9: =ROW(A9)-8 -> 1 | B9: 0 | C9: 0 | E9: =AVERAGE(OFFSET($B$9:$B$12,ROW()*$C$7-9*$C$7,)) -> -0.4148787501 | F9: =AVERAGE(OFFSET($C$9:$C$12,ROW()*$C$7-9*$C$7,)) -> 0.4463130004
A10: =ROW(A10)-8 -> 2 | B10: =Messwerte!U4 -> 0.05719999991 | C10: =Messwerte!V4 -> -0.02448599965 | E10: =AVERAGE(OFFSET($B$9:$B$12,ROW()*$C$7-9*$C$7,)) -> -5.94862125 | F10: =AVERAGE(OFFSET($C$9:$C$12,ROW()*$C$7-9*$C$7,)) -> 2.47086 | G10: =(E11-E9)/2*Messwerte!$O4 -> -6.042465 | H10: =(F11-F9)/2*Messwerte!$O4 -> 0.3535166249
A11: 3 | B11: =Messwerte!U5 -> -0.3403400001 | C11: =Messwerte!V5 -> 0.5231100006 | E11: -12.49980875 | F11: 1.15334625 | G11: =(E12-E10)/2*Messwerte!$O5 -> -5.781400625 | H11: =(F12-F10)/2*Messwerte!$O5 -> -2.430652875 | I11: =(G12-G10)/2*Messwerte!$O5 -> 0.9255228125 | J11: =(H12-H10)/2*Messwerte!$O5 -> -2.280606562
A12: 4 | B12: =Messwerte!U6 -> -1.376375 | C12: =Messwerte!V6 -> 1.286628 | E12: -17.5114225 | F12: -2.39044575 | G12: =(E13-E11)/2*Messwerte!$O6 -> -4.191419375 | H12: =(F13-F11)/2*Messwerte!$O6 -> -4.2076965 | I12: =(G13-G11)/2*Messwerte!$O6 -> 1.705677187 | J12: =(H13-H11)/2*Messwerte!$O6 -> -1.493159062
A13: 5 | B13: =Messwerte!U7 -> -3.182465 | C13: =Messwerte!V7 -> 1.995609001 | E13: -20.8826475 | F13: -7.26204675 | G13: =(E14-E12)/2*Messwerte!$O7 -> -2.37004625 | H13: =(F14-F12)/2*Messwerte!$O7 -> -5.416971 | I13: =(G14-G12)/2*Messwerte!$O7 -> 2.145402187 | J13: =(H14-H12)/2*Messwerte!$O7 -> -0.90848625
A14: 6 | B14: =Messwerte!U8 -> -5.101525 | C14: =Messwerte!V8 -> 2.719059 | E14: -22.251515 | F14: -13.22438775 | G14: =(E15-E13)/2*Messwerte!$O8 -> 0.099385 | H14: =(F15-F13)/2*Messwerte!$O8 -> -6.024669 | I14: =(G15-G13)/2*Messwerte!$O8 -> 2.492355938 | J14: =(H15-H13)/2*Messwerte!$O8 -> -0.1279254375
A15: 7 | B15: =Messwerte!U9 -> -7.03417 | C15: =Messwerte!V9 -> 2.712381001 | E15: -20.6838775 | F15: -19.31138475 | G15: =(E16-E14)/2*Messwerte!$O9 -> 2.614665625 | H15: =(F16-F14)/2*Messwerte!$O9 -> -5.672821875 | I15: =(G16-G14)/2*Messwerte!$O9 -> 2.170784687 | J15: =(H16-H14)/2*Messwerte!$O9 -> 0.8252895
A16: 8 | B16: =Messwerte!U10 -> -8.476325 | C16: =Messwerte!V10 -> 2.456391 | E16: -17.02218375 | F16: -24.5700315 | G16: =(E17-E15)/2*Messwerte!$O10 -> 4.440954375 | H16: =(F17-F15)/2*Messwerte!$O10 -> -4.37409 | I16: =(G17-G15)/2*Messwerte!$O10 -> 1.490730313 | J16: =(H17-H15)/2*Messwerte!$O10 -> 1.6611525
A17: 9 | B17: =Messwerte!U11 -> -10.296715 | C17: =Messwerte!V11 -> 2.123604 | E17: -11.80196875 | F17: -28.05956475 | G17: =(E18-E16)/2*Messwerte!$O11 -> 5.59612625 | H17: =(F18-F16)/2*Messwerte!$O11 -> -2.350516875 | I17: =(G18-G16)/2*Messwerte!$O11 -> 0.7124975 | J17: =(H18-H16)/2*Messwerte!$O11 -> 2.223147938
A18: 10 | B18: =Messwerte!U12 -> -11.95766 | C18: =Messwerte!V12 -> 1.299984 | E18: -5.82993125 | F18: -29.27106525 | G18: =(E19-E17)/2*Messwerte!$O12 -> 5.865949375 | H18: =(F19-F17)/2*Messwerte!$O12 -> 0.07220587504 | I18: =(G19-G17)/2*Messwerte!$O12 -> -0.165611875 | J18: =(H19-H17)/2*Messwerte!$O12 -> 2.480668313
A19: 11 | B19: =Messwerte!U13 -> -13.22321 | C19: =Messwerte!V13 -> 0.8547840003 | E19: -0.07007000005 | F19: -27.915153 | G19: =(E20-E18)/2*Messwerte!$O13 -> 5.2649025 | H19: =(F20-F18)/2*Messwerte!$O13 -> 2.61081975 | I19: =(G20-G18)/2*Messwerte!$O13 -> -0.966948125 | J19: =(H20-H18)/2*Messwerte!$O13 -> 2.313509625
A20: 12 | B20: =Messwerte!U14 -> -14.52165 | C20: =Messwerte!V14 -> 0.335013 | E20: 4.69987375 | F20: -24.04942575 | G20: =(E21-E19)/2*Messwerte!$O14 -> 3.932053125 | H20: =(F21-F19)/2*Messwerte!$O14 -> 4.699225125 | I20: =(G21-G19)/2*Messwerte!$O14 -> -1.664028437 | J20: =(H21-H19)/2*Messwerte!$O14 -> 1.572738562
A21: 13 | B21: =Messwerte!U15 -> -15.81723 | C21: =Messwerte!V15 -> -0.8369759997 | E21: 7.79403625 | F21: -18.51670275 | G21: =(E22-E20)/2*Messwerte!$O15 -> 1.936845625 | H21: =(F22-F20)/2*Messwerte!$O15 -> 5.756296875 | I21: =(G22-G20)/2*Messwerte!$O15 -> -2.16805875 | J21: =(H22-H20)/2*Messwerte!$O15 -> 0.6344795626
A22: 14 | B22: =Messwerte!U16 -> -17.116385 | C22: =Messwerte!V16 -> -1.820868 | E22: 8.573565 | F22: -12.536832 | G22: =(E23-E21)/2*Messwerte!$O16 -> -0.404064375 | H22: =(F23-F21)/2*Messwerte!$O16 -> 5.96818425 | I22: =(G23-G21)/2*Messwerte!$O16 -> -2.322409375 | J22: =(H23-H21)/2*Messwerte!$O16 -> -0.135646875
A23: 15 | B23: =Messwerte!U17 -> -18.04517 | C23: =Messwerte!V17 -> -2.910495 | E23: 6.9859075 | F23: -6.58033425 | G23: =(E24-E22)/2*Messwerte!$O17 -> -2.707973125 | H23: =(F24-F22)/2*Messwerte!$O17 -> 5.485003125 | I23: =(G24-G22)/2*Messwerte!$O17 -> -2.002983125 | J23: =(H24-H22)/2*Messwerte!$O17 -> -1.005943312
A24: 16 | B24: =Messwerte!U18 -> -19.066905 | C24: =Messwerte!V18 -> -3.993444 | E24: 3.15761875 | F24: -1.56682575 | G24: =(E25-E23)/2*Messwerte!$O18 -> -4.410030625 | H24: =(F25-F23)/2*Messwerte!$O18 -> 3.956297625 | I24: =(G25-G23)/2*Messwerte!$O18 -> 0.06470750002 | J24: =(H25-H23)/2*Messwerte!$O18 -> -2.08659675
A25: 17 | B25: =Messwerte!U19 -> -19.9914 | C25: =Messwerte!V19 -> -5.184354 | E25: -1.83415375 | F25: 1.332261001 | G25: =(E26-E24)/2*Messwerte!$O19 -> -2.578558125 | H25: =(F26-F24)/2*Messwerte!$O19 -> 1.311809625
A26: 18 | B26: =Messwerte!U20 -> -20.60344 | C26: =Messwerte!V20 -> -6.351891 | E26: -1.9994975 | F26: 1.0567935
A27: 19 | B27: =Messwerte!U21 -> -21.26839 | C27: =Messwerte!V21 -> -8.020278
A28: 20 | B28: =Messwerte!U22 -> -21.66736 | C28: =Messwerte!V22 -> -9.491664
A29: 21 | B29: =Messwerte!U23 -> -22.18216 | C29: =Messwerte!V23 -> -10.920756
A30: 22 | B30: =Messwerte!U24 -> -22.410245 | C30: =Messwerte!V24 -> -12.456696
A31: 23 | B31: =Messwerte!U25 -> -22.507485 | C31: =Messwerte!V25 -> -13.992636
A32: 24 | B32: =Messwerte!U26 -> -21.90617 | C32: =Messwerte!V26 -> -15.527463
A33: 25 | B33: =Messwerte!U27 -> -21.563685 | C33: =Messwerte!V27 -> -17.194737
A34: 26 | B34: =Messwerte!U28 -> -21.08249 | C34: =Messwerte!V28 -> -18.678366
A35: 27 | B35: =Messwerte!U29 -> -20.386795 | C35: =Messwerte!V29 -> -19.962768
A36: 28 | B36: =Messwerte!U30 -> -19.70254 | C36: =Messwerte!V30 -> -21.409668
A37: 29 | B37: =Messwerte!U31 -> -18.755165 | C37: =Messwerte!V31 -> -22.681827
A38: 30 | B38: =Messwerte!U32 -> -17.672655 | C38: =Messwerte!V32 -> -23.978472
A39: 31 | B39: =Messwerte!U33 -> -16.484325 | C39: =Messwerte!V33 -> -25.284021
A40: 32 | B40: =Messwerte!U34 -> -15.17659 | C40: =Messwerte!V34 -> -26.335806
A41: 33 | B41: =Messwerte!U35 -> -13.835965 | C41: =Messwerte!V35 -> -27.004719
A42: 34 | B42: =Messwerte!U36 -> -12.457445 | C42: =Messwerte!V36 -> -27.704796
A43: 35 | B43: =Messwerte!U37 -> -11.1683 | C43: =Messwerte!V37 -> -28.539546
A44: 36 | B44: =Messwerte!U38 -> -9.746165 | C44: =Messwerte!V38 -> -28.989198
A45: 37 | B45: =Messwerte!U39 -> -8.15958 | C45: =Messwerte!V39 -> -29.178408
A46: 38 | B46: =Messwerte!U40 -> -6.614465 | C46: =Messwerte!V40 -> -29.317533
A47: 39 | B47: =Messwerte!U41 -> -5.071495 | C47: =Messwerte!V41 -> -29.362053
A48: 40 | B48: =Messwerte!U42 -> -3.474185 | C48: =Messwerte!V42 -> -29.226267
A49: 41 | B49: =Messwerte!U43 -> -2.139995 | C49: =Messwerte!V43 -> -28.807779
A50: 42 | B50: =Messwerte!U44 -> -0.6885450001 | C50: =Messwerte!V44 -> -28.361466
A51: 43 | B51: =Messwerte!U45 -> 0.641355 | C51: =Messwerte!V45 -> -27.697005
A52: 44 | B52: =Messwerte!U46 -> 1.906905 | C52: =Messwerte!V46 -> -26.794362
A53: 45 | B53: =Messwerte!U47 -> 3.146 | C53: =Messwerte!V47 -> -25.859442
A54: 46 | B54: =Messwerte!U48 -> 4.17417 | C54: =Messwerte!V48 -> -24.701922
A55: 47 | B55: =Messwerte!U49 -> 5.32103 | C55: =Messwerte!V49 -> -23.497656
A56: 48 | B56: =Messwerte!U50 -> 6.158295 | C56: =Messwerte!V50 -> -22.138683
A57: 49 | B57: =Messwerte!U51 -> 6.97697 | C57: =Messwerte!V51 -> -20.729625
A58: 50 | B58: =Messwerte!U52 -> 7.68053 | C58: =Messwerte!V52 -> -19.263804
A59: 51 | B59: =Messwerte!U53 -> 8.08236 | C59: =Messwerte!V53 -> -17.786853
A60: 52 | B60: =Messwerte!U54 -> 8.436285 | C60: =Messwerte!V54 -> -16.286529
A61: 53 | B61: =Messwerte!U55 -> 8.68439 | C61: =Messwerte!V55 -> -14.864115
A62: 54 | B62: =Messwerte!U56 -> 8.702265 | C62: =Messwerte!V56 -> -13.304802
A63: 55 | B63: =Messwerte!U57 -> 8.549255 | C63: =Messwerte!V57 -> -11.741037
A64: 56 | B64: =Messwerte!U58 -> 8.35835 | C64: =Messwerte!V58 -> -10.237374
A65: 57 | B65: =Messwerte!U59 -> 7.948655 | C65: =Messwerte!V59 -> -8.762649
A66: 58 | B66: =Messwerte!U60 -> 7.423845 | C66: =Messwerte!V60 -> -7.340235
A67: 59 | B67: =Messwerte!U61 -> 6.69526 | C67: =Messwerte!V61 -> -5.834346
A68: 60 | B68: =Messwerte!U62 -> 5.87587 | C68: =Messwerte!V62 -> -4.384107
A69: 61 | B69: =Messwerte!U63 -> 4.89203 | C69: =Messwerte!V63 -> -3.145338
A70: 62 | B70: =Messwerte!U64 -> 3.81095 | C70: =Messwerte!V64 -> -1.991156999
A71: 63 | B71: =Messwerte!U65 -> 2.62548 | C71: =Messwerte!V65 -> -0.9883439995
A72: 64 | B72: =Messwerte!U66 -> 1.302015 | C72: =Messwerte!V66 -> -0.1424639999
A73: 65 | B73: =Messwerte!U67 -> -0.03146000006 | C73: =Messwerte!V67 -> 0.6099240006
A74: =ROW(A74)-8 -> 66 | B74: =Messwerte!U68 -> -1.34849 | C74: =Messwerte!V68 -> 1.135260001
A75: 67 | B75: =Messwerte!U69 -> -2.46246 | C75: =Messwerte!V69 -> 1.71402
A76: 68 | B76: =Messwerte!U70 -> -3.494205 | C76: =Messwerte!V70 -> 1.86984
A77: 69 | B77: =Messwerte!U71 -> -3.998995 | C77: =Messwerte!V71 -> 2.113587
A78: 70 | B78: =Messwerte!U72 -> 0 | C78: =Messwerte!V72 -> 0

Sheet t-v-Diagramm
A1: t-v-Diagramm
A2: Messung 1
A3: Nummer | B3: Zeit in s | C3: Tempo in m/s
A4: 1 | B4: =Messwerte!P3 -> 0 | C4: =Messwerte!Q3 -> 0
A5: 2 | B5: =Messwerte!P4 -> 1 | C5: =Messwerte!Q4 -> 0
A6: 3 | B6: =Messwerte!P5 -> 2 | C6: =Messwerte!Q5 -> 0.6712939295
A7: 4 | B7: =Messwerte!P6 -> 3 | C7: =Messwerte!Q6 -> 1.28074719
A8: 5 | B8: =Messwerte!P7 -> 4 | C8: =Messwerte!Q7 -> 1.926976089
A9: 6 | B9: =Messwerte!P8 -> 5 | C9: =Messwerte!Q8 -> 2.040556882
A10: 7 | B10: =Messwerte!P9 -> 6 | C10: =Messwerte!Q9 -> 1.922293273
A11: 8 | B11: =Messwerte!P10 -> 7 | C11: =Messwerte!Q10 -> 1.455330559
A12: 9 | B12: =Messwerte!P11 -> 8 | C12: =Messwerte!Q11 -> 1.840863727
A13: 10 | B13: =Messwerte!P12 -> 9 | C13: =Messwerte!Q12 -> 1.845753147
A14: 11 | B14: =Messwerte!P13 -> 10 | C14: =Messwerte!Q13 -> 1.335858053
A15: 12 | B15: =Messwerte!P14 -> 11 | C15: =Messwerte!Q14 -> 1.395258231
A16: 13 | B16: =Messwerte!P15 -> 12 | C16: =Messwerte!Q15 -> 1.740192756
A17: 14 | B17: =Messwerte!P16 -> 13 | C17: =Messwerte!Q16 -> 1.622255082
A18: 15 | B18: =Messwerte!P17 -> 14 | C18: =Messwerte!Q17 -> 1.427190471
A19: 16 | B19: =Messwerte!P18 -> 15 | C19: =Messwerte!Q18 -> 1.485972457
A20: 17 | B20: =Messwerte!P19 -> 16 | C20: =Messwerte!Q19 -> 1.501058859
A21: 18 | B21: =Messwerte!P20 -> 17 | C21: =Messwerte!Q20 -> 1.318883309
A22: 19 | B22: =Messwerte!P21 -> 18 | C22: =Messwerte!Q21 -> 1.791235619
A23: 20 | B23: =Messwerte!P22 -> 19 | C23: =Messwerte!Q22 -> 1.518964767
A24: 21 | B24: =Messwerte!P23 -> 20 | C24: =Messwerte!Q23 -> 1.513019677
A25: 22 | B25: =Messwerte!P24 -> 21 | C25: =Messwerte!Q24 -> 1.548347853
A26: 23 | B26: =Messwerte!P25 -> 22 | C26: =Messwerte!Q25 -> 1.536662041
A27: 24 | B27: =Messwerte!P26 -> 23 | C27: =Messwerte!Q26 -> 1.644327595
A28: 25 | B28: =Messwerte!P27 -> 24 | C28: =Messwerte!Q27 -> 1.698254237
A29: 26 | B29: =Messwerte!P28 -> 25 | C29: =Messwerte!Q28 -> 1.559946125
A30: 27 | B30: =Messwerte!P29 -> 26 | C30: =Messwerte!Q29 -> 1.45842372
A31: 28 | B31: =Messwerte!P30 -> 27 | C31: =Messwerte!Q30 -> 1.599878078
A32: 29 | B32: =Messwerte!P31 -> 28 | C32: =Messwerte!Q31 -> 1.582887741
A33: 30 | B33: =Messwerte!P32 -> 29 | C33: =Messwerte!Q32 -> 1.68493439
A34: 31 | B34: =Messwerte!P33 -> 30 | C34: =Messwerte!Q33 -> 1.76078747
A35: 32 | B35: =Messwerte!P34 -> 31 | C35: =Messwerte!Q34 -> 1.671508405
A36: 33 | B36: =Messwerte!P35 -> 32 | C36: =Messwerte!Q35 -> 1.489001966
A37: 34 | B37: =Messwerte!P36 -> 33 | C37: =Messwerte!Q36 -> 1.53959181
A38: 35 | B38: =Messwerte!P37 -> 34 | C38: =Messwerte!Q37 -> 1.530785682
A39: 36 | B39: =Messwerte!P38 -> 35 | C39: =Messwerte!Q38 -> 1.482936759
A40: 37 | B40: =Messwerte!P39 -> 36 | C40: =Messwerte!Q39 -> 1.591405584
A41: 38 | B41: =Messwerte!P40 -> 37 | C41: =Messwerte!Q40 -> 1.542516013
A42: 39 | B42: =Messwerte!P41 -> 38 | C42: =Messwerte!Q41 -> 1.536662041
A43: 40 | B43: =Messwerte!P42 -> 39 | C43: =Messwerte!Q42 -> 1.594234752
A44: 41 | B44: =Messwerte!P43 -> 40 | C44: =Messwerte!Q43 -> 1.392024719
A45: 42 | B45: =Messwerte!P44 -> 41 | C45: =Messwerte!Q44 -> 1.513019677
A46: 43 | B46: =Messwerte!P45 -> 42 | C46: =Messwerte!Q45 -> 1.476846645
A47: 44 | B47: =Messwerte!P46 -> 43 | C47: =Messwerte!Q46 -> 1.548347853
A48: 45 | B48: =Messwerte!P47 -> 44 | C48: =Messwerte!Q47 -> 1.545434683
A49: 46 | B49: =Messwerte!P48 -> 45 | C49: =Messwerte!Q48 -> 1.542516013
A50: 47 | B50: =Messwerte!P49 -> 46 | C50: =Messwerte!Q49 -> 1.660689467
A51: 48 | B51: =Messwerte!P50 -> 47 | C51: =Messwerte!Q50 -> 1.594234752
A52: 49 | B52: =Messwerte!P51 -> 48 | C52: =Messwerte!Q51 -> 1.62780127
A53: 50 | B53: =Messwerte!P52 -> 49 | C53: =Messwerte!Q52 -> 1.622255082
A54: 51 | B54: =Messwerte!P53 -> 50 | C54: =Messwerte!Q53 -> 1.527839028
A55: 52 | B55: =Messwerte!P54 -> 51 | C55: =Messwerte!Q54 -> 1.53959181
A56: 53 | B56: =Messwerte!P55 -> 52 | C56: =Messwerte!Q55 -> 1.442891609
A57: 54 | B57: =Messwerte!P56 -> 53 | C57: =Messwerte!Q56 -> 1.557054656
A58: 55 | B58: =Messwerte!P57 -> 54 | C58: =Messwerte!Q57 -> 1.5714588
A59: 56 | B59: =Messwerte!P58 -> 55 | C59: =Messwerte!Q58 -> 1.513019677
A60: 57 | B60: =Messwerte!P59 -> 56 | C60: =Messwerte!Q59 -> 1.527839028
A61: 58 | B61: =Messwerte!P60 -> 57 | C61: =Messwerte!Q60 -> 1.513019677
A62: 59 | B62: =Messwerte!P61 -> 58 | C62: =Messwerte!Q61 -> 1.671508405
A63: 60 | B63: =Messwerte!P62 -> 59 | C63: =Messwerte!Q62 -> 1.663400797
A64: 61 | B64: =Messwerte!P63 -> 60 | C64: =Messwerte!Q63 -> 1.577183623
A65: 62 | B65: =Messwerte!P64 -> 61 | C65: =Messwerte!Q64 -> 1.577183623
A66: 63 | B66: =Messwerte!P65 -> 62 | C66: =Messwerte!Q65 -> 1.548347853
A67: 64 | B67: =Messwerte!P66 -> 63 | C67: =Messwerte!Q66 -> 1.565713043
A68: 65 | B68: =Messwerte!P67 -> 64 | C68: =Messwerte!Q67 -> 1.52488668
A69: 66 | B69: =Messwerte!P68 -> 65 | C69: =Messwerte!Q68 -> 1.408118026
A70: 67 | B70: =Messwerte!P69 -> 66 | C70: =Messwerte!Q69 -> 1.24506476
A71: 68 | B71: =Messwerte!P70 -> 67 | C71: =Messwerte!Q70 -> 1.039964083
